bitfinex/quotes_SOLUSD_20240920
["timestamp","ask_amount","ask_price","bid_price","bid_amount"]
[1726820437575,23.902374,151.85,151.77,0.18508281]
[1726820437890,6.5859,151.84,151.77,0.18508281]
[1726820438278,6.5866,151.83,151.77,0.18508281]
[1726820441295,39.8666954,151.84,151.77,0.18508281]
[1726820444878,21.6732,151.88,151.77,0.18508281]
[1726820447175,23.776884,151.87,151.77,0.18508281]
[1726820448184,6.5851,151.86,151.77,0.18508281]
[1726820448387,0.12549,151.86,151.77,0.18508281]
[1726820448601,0.12549,151.86,151.77,1.50257479]
[1726820449111,23.776884,151.87,151.77,0.18508281]
[1726820449684,30.361584,151.87,151.77,0.18508281]
[1726820449882,6.5852,151.86,151.77,0.18508281]
[1726820450109,6.5857,151.85,151.77,0.18508281]
[1726820450392,0.37647,151.86,151.77,0.18508281]
[1726820450600,6.5876,151.8,151.77,0.18508281]
[1726820450786,23.902374,151.83,151.77,0.18508281]
[1726820452299,6.587,151.82,151.77,0.18508281]
[1726820456314,23.902374,151.81,151.77,0.18508281]
[1726820456513,33.2807954,151.78,151.77,0.18508281]
[1726820456714,64.0225494,151.78,151.77,0.18508281]
[1726820457201,44.153354,151.77,151.7,0.45190259]
[1726820457411,23.776884,151.73,151.7,0.45190259]
[1726820457789,0.12549,151.73,151.7,0.45190259]
[1726820459306,0.25098,151.73,151.7,0.45190259]
[1726820460210,23.776884,151.74,151.7,0.45190259]
[1726820461119,6.5893,151.76,151.7,0.45190259]
[1726820462392,23.776884,151.75,151.7,0.45190259]
[1726820463512,23.776884,151.76,151.7,0.45190259]
[1726820464400,30.366384,151.76,151.7,0.45190259]
[1726820466812,30.366384,151.76,151.69,0.0719953]
[1726820466813,30.366384,151.76,151.69,0.45571439]
[1726820467013,6.96637,151.75,151.69,0.45571439]
[1726820467322,23.776884,151.74,151.69,0.45571439]
[1726820470119,6.5902,151.74,151.69,0.45571439]
[1726820470619,23.776884,151.73,151.69,0.45571439]
[1726820470818,30.367884,151.73,151.69,0.45571439]
[1726820471111,23.776884,151.71,151.69,0.45571439]
[1726820471318,30.368784,151.7,151.69,0.45571439]
[1726820471694,23.776884,151.7,151.69,0.45571439]
[1726820474115,30.368784,151.7,151.69,0.45571439]
[1726820475502,30.745254,151.7,151.69,0.45571439]
[1726820475799,51.63442648,151.7,151.69,0.45571439]
[1726820476198,30.746154,151.68,151.67,0.3200622]
[1726820476428,71.63532648,151.68,151.67,0.3200622]
[1726820476719,6.5949,151.64,151.61,0.4276429]
[1726820476895,30.371884,151.63,151.61,0.4276429]
[1726820477100,30.748754,151.62,151.61,0.4276429]
[1726820481401,50.748754,151.62,151.61,0.4276429]
[1726820482203,50.748754,151.62,151.53,0.1075807]
[1726820482204,33.48425985,151.63,151.53,0.1075807]
[1726820482205,6.5972,151.58,151.53,0.1075807]
[1726820482522,6.5972,151.58,151.53,0.3581977]
[1726820482523,23.776884,151.57,151.53,0.3581977]
[1726820482730,6.5972,151.58,151.53,0.3581977]
[1726820482731,23.776884,151.55,151.53,0.3581977]
[1726820483026,23.776884,151.54,151.53,0.3581977]
[1726820484001,24.153354,151.54,151.53,0.3581977]
[1726820484400,23.902374,151.54,151.53,0.3581977]
[1726820485097,20.0,151.59,151.53,0.3581977]
[1726820485425,0.12549,151.58,151.53,0.3581977]
[1726820486412,23.902374,151.58,151.53,0.3581977]
[1726820488230,30.499674,151.58,151.53,0.3581977]
[1726820491234,6.5976,151.57,151.53,0.3581977]
[1726820491525,23.776884,151.56,151.53,0.3581977]
[1726820492921,23.776884,151.57,151.53,0.3581977]
[1726820495214,6.5976,151.57,151.53,0.3581977]
[1726820495537,0.37647,151.55,151.53,0.3581977]
[1726820495837,23.902374,151.54,151.53,0.3581977]
[1726820498224,30.501274,151.54,151.53,0.3581977]
[1726820500824,26.57071429,151.54,151.53,0.3581977]
[1726820501024,26.82169429,151.54,151.53,0.3581977]
[1726820501224,47.76757842,151.54,151.53,0.3581977]
[1726820502312,67.76757842,151.54,151.53,0.3581977]
[1726820504017,46.82169429,151.54,151.53,0.3581977]
[1726820504318,67.76757842,151.54,151.53,0.3581977]
[1726820504534,46.82169429,151.54,151.53,0.3581977]
[1726820504924,67.76757842,151.54,151.53,0.3581977]
[1726820507738,46.82169429,151.54,151.53,0.3581977]
[1726820508034,20.94588413,151.6,151.53,0.3581977]
[1726820508236,6.5979,151.57,151.53,0.3581977]
[1726820508830,6.5989,151.54,151.53,0.3581977]
[1726820509217,26.5989,151.54,151.53,0.3581977]
[1726820509421,6.5997,151.52,151.51,0.0719953]
[1726820509635,44.153354,151.52,151.51,0.0719953]
[1726820510143,50.753054,151.52,151.51,0.0719953]
[1726820511441,16.3375,151.65,151.51,21.01787943]
[1726820511613,6.83602945,151.62,151.53,20.94588413]
[1726820511819,6.5949,151.64,151.53,20.94588413]
[1726820511820,6.5949,151.64,151.55,6.2881]
[1726820512430,6.5949,151.64,151.56,15.1604]
[1726820513340,6.5941,151.66,151.56,15.1604]
[1726820513725,20.94588413,151.66,151.56,15.1604]
[1726820513926,6.595,151.63,151.56,15.1604]
[1726820514851,24.153354,151.62,151.56,15.1604]
[1726820515641,30.748754,151.62,151.56,15.1604]
[1726820516531,6.5941,151.65,151.56,16.48001757]
[1726820516849,20.0,151.64,151.56,15.1604]
[1726820517226,20.0,151.65,151.56,15.1604]
[1726820517524,6.5952,151.63,151.56,15.1604]
[1726820517725,0.37647,151.62,151.56,15.1604]
[1726820517928,24.153354,151.62,151.56,15.1604]
[1726820518328,23.902374,151.62,151.56,15.1604]
[1726820519134,30.497774,151.62,151.56,15.1604]
[1726820519449,0.25098,151.61,151.56,15.1604]
[1726820519742,23.902374,151.59,151.55,6.2881]
[1726820519927,0.12549,151.58,151.55,6.2881]
[1726820520821,0.12549,151.58,151.52,15.632]
[1726820521447,0.12549,151.57,151.52,15.632]
[1726820522334,0.37647,151.58,151.52,15.632]
[1726820523148,23.776884,151.57,151.52,15.632]
[1726820526936,6.97367,151.58,151.52,15.632]
[1726820527153,23.776884,151.57,151.52,15.632]
[1726820527328,0.12549,151.56,151.52,15.632]
[1726820529548,23.776884,151.57,151.52,15.632]
[1726820530436,50.624264,151.6,151.52,15.632]
[1726820531848,0.25098,151.59,151.52,15.632]
[1726820533048,0.25098,151.58,151.52,15.632]
[1726820533433,0.25098,151.57,151.52,15.632]
[1726820534032,0.12549,151.57,151.52,15.632]
[1726820534362,24.027864,151.59,151.52,15.632]
[1726820535956,0.12549,151.58,151.52,15.632]
[1726820536352,0.12549,151.57,151.52,15.632]
[1726820536858,23.902374,151.57,151.52,15.632]
[1726820537255,0.12549,151.56,151.52,15.632]
[1726820539562,23.776884,151.57,151.52,15.632]
[1726820541849,0.25098,151.57,151.52,15.632]
[1726820543956,0.12549,151.57,151.52,15.632]
[1726820546150,0.12549,151.55,151.52,15.632]
[1726820546359,23.902374,151.55,151.52,15.632]
[1726820556764,23.902374,151.55,151.51,6.6945926]
[1726820562887,0.12549,151.55,151.51,6.6945926]
[1726820568073,0.12549,151.56,151.51,6.6945926]
[1726820568274,20.0,151.61,151.53,13.39592217]
[1726820568480,13.39592217,151.6,151.53,13.39592217]
[1726820569696,0.12549,151.59,151.53,13.39592217]
[1726820570283,23.902374,151.59,151.53,13.39592217]
[1726820571068,23.902374,151.59,151.52,13.39592217]
[1726820572089,0.12549,151.59,151.54,13.39592217]
[1726820572295,16.4854,151.65,151.51,6.6945926]
[1726820572296,22.5362,151.68,151.56,13.39592217]
[1726820572609,6.5941,151.65,151.58,19.73112217]
[1726820573378,6.5941,151.65,151.58,6.3352]
[1726820573699,19.99002217,151.65,151.58,6.3352]
[1726820573896,0.12549,151.63,151.58,6.3352]
[1726820574589,20.0,151.66,151.58,6.3352]
[1726820574896,20.0,151.66,151.59,13.39592217]
[1726820575394,20.10824497,151.67,151.59,13.39592217]
[1726820575793,24.153354,151.66,151.59,13.39592217]
[1726820577797,30.747054,151.66,151.59,13.39592217]
[1726820578294,30.747054,151.66,151.58,6.3352]
[1726820578501,0.37647,151.63,151.58,6.3352]
[1726820578703,23.776884,151.66,151.58,19.73112217]
[1726820578997,0.37647,151.65,151.6,13.39592217]
[1726820579584,0.37647,151.65,151.58,19.73112217]
[1726820580373,23.776884,151.63,151.58,6.3352]
[1726820580579,0.37647,151.65,151.58,19.73112217]
[1726820580797,24.153354,151.65,151.58,19.73112217]
[1726820581003,0.1190228,151.67,151.6,13.39592217]
[1726820581304,0.1190228,151.67,151.61,16.6005]
[1726820582403,24.0213968,151.67,151.61,16.6005]
[1726820584103,0.1190228,151.67,151.62,13.39592217]
[1726820585800,0.1190228,151.67,151.61,16.6005]
[1726820586902,0.1190228,151.67,151.61,29.99642217]
[1726820587201,0.1190228,151.67,151.62,13.39592217]
[1726820588005,0.4954928,151.67,151.61,16.6005]
[1726820588194,13.39592217,151.64,151.58,6.3352]
[1726820588390,37.17280617,151.63,151.58,6.3352]
[1726820588593,43.76780617,151.63,151.58,6.3352]
[1726820588795,37.17280617,151.63,151.58,6.3352]
[1726820589507,43.76780617,151.63,151.58,6.3352]
[1726820590292,23.776884,151.63,151.58,6.3352]
[1726820590589,23.776884,151.64,151.58,6.3352]
[1726820590984,23.776884,151.65,151.58,19.73112217]
[1726820591184,23.776884,151.65,151.59,13.39592217]
[1726820594135,24.153354,151.64,151.58,6.3352]
[1726820595613,24.027864,151.65,151.58,19.73112217]
[1726820595999,23.902374,151.65,151.58,19.73112217]
[1726820596206,0.12549,151.65,151.59,13.39592217]
[1726820596390,0.12549,151.66,151.6,13.39592217]
[1726820596886,23.8959068,151.67,151.6,13.39592217]
[1726820597293,0.25098,151.66,151.58,6.3352]
[1726820597514,13.39592217,151.63,151.55,15.9882]
[1726820597808,19.99182217,151.61,151.55,15.9882]
[1726820598386,30.749654,151.6,151.55,15.9882]
[1726820599095,24.153354,151.6,151.55,15.9882]
[1726820599315,23.776884,151.58,151.54,0.1817973]
[1726820599814,30.374084,151.58,151.54,0.1817973]
[1726820599993,23.776884,151.58,151.54,0.1817973]
[1726820601302,23.776884,151.59,151.54,0.1817973]
[1726820601610,24.153354,151.6,151.54,0.1817973]
[1726820602817,0.37647,151.6,151.54,0.1817973]
[1726820604315,6.97277,151.6,151.54,0.1817973]
[1726820604511,0.37647,151.6,151.54,0.1817973]
[1726820604897,0.12549,151.6,151.54,0.1817973]
[1726820605094,0.12549,151.6,151.54,0.0979893]
[1726820606338,23.776884,151.61,151.54,0.0979893]
[1726820607900,0.12549,151.62,151.54,0.0979893]
[1726820610524,23.776884,151.6,151.54,0.0979893]
[1726820611024,23.776884,151.58,151.54,0.0979893]
[1726820613320,0.25098,151.57,151.54,0.0979893]
[1726820613497,23.776884,151.56,151.54,0.0979893]
[1726820615730,0.37647,151.55,151.54,0.0979893]
[1726820617333,30.751754,151.55,151.54,0.0979893]
[1726820618911,23.776884,151.54,151.49,5.4397023]
[1726820619926,0.37647,151.53,151.47,0.2538177]
[1726820620435,6.97577,151.53,151.47,0.2538177]
[1726820620811,23.776884,151.52,151.47,0.2538177]
[1726820621209,0.12549,151.49,151.47,0.2538177]
[1726820621521,0.37647,151.49,151.47,0.2538177]
[1726820621829,23.902374,151.48,151.47,0.2538177]
[1726820624008,24.153354,151.48,151.47,0.2538177]
[1726820634928,23.902374,151.48,151.47,0.2538177]
[1726820640337,23.776884,151.48,151.47,0.2538177]
[1726820640649,0.25098,151.49,151.47,0.2538177]
[1726820641137,23.902374,151.49,151.47,0.2538177]
[1726820641439,0.12549,151.51,151.47,0.2538177]
[1726820642114,0.12549,151.52,151.47,0.2538177]
[1726820642328,0.12549,151.51,151.47,0.2538177]
[1726820643448,24.027864,151.51,151.47,0.2538177]
[1726820643956,37.4371368,151.51,151.47,0.2538177]
[1726820645725,24.027864,151.49,151.47,0.2538177]
[1726820645929,37.5626268,151.48,151.47,0.2538177]
[1726820647041,23.776884,151.48,151.47,0.2538177]
[1726820648822,23.902374,151.48,151.47,0.2538177]
[1726820650148,24.153354,151.48,151.47,0.2538177]
[1726820650336,37.5626268,151.48,151.47,0.2538177]
[1726820653129,24.153354,151.48,151.47,0.2538177]
[1726820660452,23.776884,151.48,151.47,0.2538177]
[1726820661053,6.5998,151.52,151.47,0.2538177]
[1726820661356,0.25098,151.51,151.47,0.2538177]
[1726820661945,13.4092728,151.52,151.47,0.2538177]
[1726820662660,13.4092728,151.51,151.47,0.2538177]
[1726820663243,23.902374,151.5,151.47,0.2538177]
[1726820663555,23.902374,151.51,151.47,0.2538177]
[1726820666047,0.37647,151.5,151.47,0.2538177]
[1726820666238,0.12549,151.5,151.47,0.2538177]
[1726820666442,23.776884,151.51,151.47,0.2538177]
[1726820667743,37.1861568,151.51,151.47,0.2538177]
[1726820673253,23.776884,151.51,151.47,0.2538177]
[1726820674068,24.153354,151.54,151.47,13.6630905]
[1726820674268,22.9559,151.55,151.48,13.4092728]
[1726820675469,23.776884,151.54,151.48,13.4092728]
[1726820675672,0.12549,151.53,151.48,13.4092728]
[1726820676176,0.12549,151.53,151.47,19.7166905]
[1726820678586,23.776884,151.55,151.48,15.0599]
[1726820678901,0.37647,151.54,151.48,15.0599]
[1726820679279,23.776884,151.53,151.48,15.0599]
[1726820681366,30.376284,151.53,151.48,15.0599]
[1726820681564,0.25098,151.52,151.48,15.0599]
[1726820681784,6.85068,151.52,151.47,6.3074177]
[1726820682093,23.776884,151.51,151.47,6.3074177]
[1726820682581,24.027864,151.52,151.47,6.3074177]
[1726820687888,0.12549,151.51,151.47,6.3074177]
[1726820688090,0.12549,151.51,151.47,0.2538177]
[1726820688288,0.25098,151.5,151.47,0.2538177]
[1726820688585,23.776884,151.48,151.47,0.2538177]
[1726820688790,23.902374,151.48,151.47,0.2538177]
[1726820690484,24.153354,151.48,151.47,0.2538177]
[1726820691890,24.027864,151.48,151.47,0.2538177]
[1726820692095,23.902374,151.5,151.47,0.2538177]
[1726820692472,24.027864,151.51,151.47,0.2538177]
[1726820693768,0.12549,151.5,151.47,0.2538177]
[1726820695797,24.027864,151.51,151.47,0.2538177]
[1726820697797,0.12549,151.5,151.47,0.2538177]
[1726820702388,0.12549,151.49,151.47,0.2538177]
[1726820702977,0.25098,151.5,151.47,0.2538177]
[1726820703670,15.6041,151.54,151.47,0.2538177]
[1726820703937,0.12549,151.53,151.47,13.6630905]
[1726820704373,20.0073728,151.56,151.48,13.4092728]
[1726820704794,13.4092728,151.56,151.48,13.4092728]
[1726820705400,20.0,151.55,151.48,13.4092728]
[1726820705601,0.12549,151.54,151.47,16.1671177]
[1726820705777,0.12549,151.54,151.47,29.5763905]
[1726820705778,24.153354,151.54,151.47,29.5763905]
[1726820707281,37.5626268,151.54,151.47,16.1671177]
[1726820707485,0.25098,151.51,151.47,16.1671177]
[1726820710819,23.776884,151.52,151.48,13.4092728]
[1726820713298,0.12549,151.51,151.48,13.4092728]
[1726820715010,23.776884,151.52,151.48,13.4092728]
[1726820716395,15.3345,151.58,151.5,13.4092728]
[1726820716609,15.3345,151.58,151.52,13.4092728]
[1726820717021,13.4092728,151.6,151.52,13.4092728]
[1726820717495,28.7535905,151.62,151.54,13.4092728]
[1726820718106,15.3443177,151.62,151.56,13.4092728]
[1726820718416,0.2538177,151.62,151.56,13.4092728]
[1726820719711,0.37647,151.61,151.56,13.4092728]
[1726820720020,24.153354,151.61,151.56,13.4092728]
[1726820720217,0.37647,151.61,151.56,13.4092728]
[1726820720513,0.37647,151.61,151.55,6.4714]
[1726820721711,24.153354,151.61,151.55,6.4714]
[1726820726317,24.153354,151.61,151.56,13.4092728]
[1726820726497,24.153354,151.61,151.57,13.4092728]
[1726820728930,24.0307017,151.62,151.58,13.4092728]
[1726820729099,0.2538177,151.62,151.6,13.4092728]
[1726820730433,0.2538177,151.62,151.58,13.4092728]
[1726820731319,0.25098,151.61,151.55,6.4714]
[1726820731511,0.25098,151.61,151.56,13.4092728]
[1726820732425,0.12549,151.59,151.53,16.4912]
[1726820732722,0.12549,151.59,151.55,13.4092728]
[1726820735009,23.776884,151.6,151.55,13.4092728]
[1726820736932,0.12549,151.59,151.53,16.4912]
[1726820737231,0.12549,151.59,151.55,13.4092728]
[1726820737933,23.776884,151.6,151.55,13.4092728]
[1726820739709,23.776884,151.6,151.57,13.4092728]
[1726820739909,24.027864,151.61,151.53,16.4912]
[1726820740126,24.027864,151.61,151.56,13.4092728]
[1726820741133,0.12549,151.6,151.56,13.4092728]
[1726820742930,0.25098,151.6,151.56,13.4092728]
[1726820744434,0.2538177,151.62,151.56,13.4092728]
[1726820746535,0.2538177,151.62,151.58,13.4092728]
[1726820748531,0.2538177,151.62,151.6,13.4092728]
[1726820754554,0.2538177,151.62,151.53,22.6962]
[1726820754843,0.2538177,151.62,151.57,13.4092728]
[1726820755227,0.2538177,151.62,151.53,22.6962]
[1726820755422,0.12549,151.61,151.56,13.4092728]
[1726820755623,0.37647,151.61,151.56,13.4092728]
[1726820755825,24.153354,151.61,151.56,13.4092728]
[1726820756225,24.153354,151.61,151.53,22.6962]
[1726820756421,24.153354,151.61,151.55,13.4092728]
[1726820757242,24.153354,151.61,151.53,22.6962]
[1726820757444,24.153354,151.61,151.55,13.4092728]
[1726820757634,24.153354,151.61,151.53,22.6962]
[1726820757830,30.749254,151.61,151.54,13.4092728]
[1726820758249,24.153354,151.59,151.54,13.4092728]
[1726820759148,24.153354,151.59,151.49,27.47532971]
[1726820759356,24.153354,151.59,151.52,13.4092728]
[1726820759851,30.750154,151.59,151.52,13.4092728]
[1726820763142,30.750154,151.59,151.53,13.4092728]
[1726820763456,30.750154,151.59,151.52,13.4092728]
[1726820765533,13.4092728,151.58,151.5,5.40768174]
[1726820765760,0.37647,151.55,151.48,5.40768174]
[1726820766063,24.153354,151.55,151.48,5.40768174]
[1726820766245,24.153354,151.55,151.49,13.4092728]
[1726820768860,53.439254,151.55,151.49,13.4092728]
[1726820769058,24.153354,151.53,151.47,0.2538177]
[1726820769359,24.153354,151.53,151.47,13.6630905]
[1726820770461,24.027864,151.54,151.47,13.6630905]
[1726820770655,24.027864,151.54,151.49,13.4092728]
[1726820772365,24.027864,151.54,151.48,13.4092728]
[1726820772581,24.027864,151.54,151.47,13.6630905]
[1726820772742,13.5347628,151.53,151.47,0.2538177]
[1726820773051,24.027864,151.52,151.47,0.2538177]
[1726820773857,0.12549,151.49,151.47,0.2538177]
[1726820774059,24.153354,151.48,151.47,0.2538177]
[1726820775749,23.776884,151.48,151.47,0.2538177]
[1726820777953,24.153354,151.48,151.47,0.2538177]
[1726820780959,23.776884,151.48,151.47,0.2538177]
[1726820781853,24.027864,151.48,151.47,0.2538177]
[1726820783458,24.153354,151.48,151.47,0.2538177]
[1726820793866,57.5626268,151.48,151.47,0.2538177]
[1726820794077,57.5626268,151.48,151.44,0.1075807]
[1726820794078,20.37647,151.47,151.44,0.1075807]
[1726820794378,32.9956,151.54,151.42,0.325813]
[1726820794379,6.6037,151.43,151.42,0.325813]
[1726820794586,84.0163268,151.43,151.42,0.325813]
[1726820794798,64.1663268,151.43,151.42,0.325813]
[1726820795860,84.0163268,151.43,151.42,0.325813]
[1726820796090,64.1663268,151.43,151.42,0.325813]
[1726820799173,84.0163268,151.43,151.42,0.325813]
[1726820800890,64.1663268,151.43,151.42,0.325813]
[1726820803385,50.757054,151.43,151.42,0.325813]
[1726820803880,64.1663268,151.43,151.42,0.325813]
[1726820808974,50.757054,151.43,151.42,0.325813]
[1726820809381,64.1663268,151.43,151.42,0.325813]
[1726820810190,84.0163268,151.43,151.42,0.325813]
[1726820810614,64.1663268,151.43,151.42,0.325813]
[1726820811987,84.0163268,151.43,151.42,0.325813]
[1726820812606,84.0163268,151.43,151.38,0.2538177]
[1726820812607,6.6054,151.39,151.38,0.2538177]
[1726820812893,99.7466268,151.39,151.38,0.2538177]
[1726820813089,13.7857428,151.34,151.33,0.4333937]
[1726820813387,37.5626268,151.34,151.33,0.4333937]
[1726820814991,24.153354,151.34,151.33,0.4333937]
[1726820823293,37.5626268,151.34,151.33,0.4333937]
[1726820826083,64.1702268,151.34,151.33,0.4333937]
[1726820826672,84.0202268,151.34,151.33,0.4333937]
[1726820826995,99.0947268,151.34,151.33,0.4333937]
[1726820827204,99.0947268,151.34,151.25,0.3973608]
[1726820827205,24.153354,151.29,151.25,0.3973608]
[1726820827500,24.153354,151.29,151.25,0.4781442]
[1726820828482,30.763154,151.29,151.25,0.4781442]
[1726820831000,44.1724268,151.29,151.25,0.4781442]
[1726820831300,37.5626268,151.27,151.25,0.4781442]
[1726820832002,84.0237268,151.26,151.25,0.4781442]
[1726820832299,84.0237268,151.26,151.21,0.2897801]
[1726820832300,64.003354,151.24,151.21,0.2897801]
[1726820832601,64.003354,151.24,151.21,0.3617754]
[1726820832602,40.2730528,151.22,151.21,0.3617754]
[1726820833974,60.1230528,151.22,151.21,0.3617754]
[1726820834179,0.37647,151.16,151.12,22.5134]
[1726820834484,0.25098,151.16,151.12,22.5134]
[1726820834688,0.25098,151.16,151.12,35.9226728]
[1726820835686,0.37647,151.16,151.12,22.5134]
[1726820836302,0.37647,151.16,151.11,0.2897801]
[1726820837301,0.12549,151.16,151.11,13.6990529]
[1726820837904,0.12549,151.16,151.11,0.2897801]
[1726820838485,0.37647,151.16,151.11,0.2897801]
[1726820839598,44.1781268,151.16,151.11,0.2897801]
[1726820839805,64.1781268,151.16,151.11,0.2897801]
[1726820841413,30.770554,151.12,151.11,0.2897801]
[1726820841611,44.1798268,151.12,151.11,0.2897801]
[1726820842109,64.1798268,151.12,151.11,0.2897801]
[1726820843395,64.1798268,151.12,151.06,0.179576]
[1726820843396,50.771054,151.11,151.06,0.179576]
[1726820843598,24.153354,151.09,151.06,0.2479703]
[1726820843913,0.37647,151.09,151.06,0.2479703]
[1726820844408,44.153354,151.07,151.06,0.2479703]
[1726820844588,24.153354,151.07,151.06,0.2479703]
[1726820845709,44.153354,151.07,151.06,0.2479703]
[1726820846099,50.772754,151.07,151.06,0.2479703]
[1726820846536,50.772754,151.07,151.05,0.4571298]
[1726820846537,24.153354,151.06,151.05,0.650842]
[1726820849003,52.975354,151.06,151.05,0.650842]
[1726820849202,50.773654,151.05,151.04,0.0895996]
[1726820850312,71.84468913,151.05,151.04,0.0895996]
[1726820851804,50.773654,151.05,151.04,0.0895996]
[1726820852207,16.0993,151.1,151.04,0.0895996]
[1726820852993,6.6181,151.11,151.04,0.0895996]
[1726820853308,21.07103513,151.11,151.04,0.0895996]
[1726820853517,6.6189,151.09,151.04,0.0895996]
[1726820854298,23.902374,151.07,151.04,0.0895996]
[1726820854621,30.647764,151.06,151.04,0.0895996]
[1726820854997,0.12549,151.05,151.04,0.0895996]
[1726820858526,30.773654,151.05,151.04,0.0895996]
[1726820858815,50.773654,151.05,151.04,0.0895996]
[1726820861203,43.902374,151.05,151.04,0.0895996]
[1726820861920,23.902374,151.05,151.04,0.0895996]
[1726820862102,20.0,151.07,151.04,0.0895996]
[1726820862922,6.6191,151.08,151.04,0.0895996]
[1726820862923,20.0,151.08,151.04,0.0895996]
[1726820863299,0.12549,151.08,151.04,0.0895996]
[1726820863499,6.6176,151.12,151.04,0.0895996]
[1726820863921,6.6181,151.11,151.04,0.0895996]
[1726820864526,19.85,151.13,151.04,0.0895996]
[1726820864726,37.38823513,151.14,151.04,0.0895996]
[1726820864727,24.153354,151.08,151.04,0.0895996]
[1726820865017,6.6185,151.09,151.04,0.0895996]
[1726820865018,0.37647,151.06,151.04,0.0895996]
[1726820866798,24.027864,151.05,151.04,0.0895996]
[1726820867002,23.902374,151.05,151.04,0.0895996]
[1726820867523,24.027864,151.05,151.04,0.0895996]
[1726820868429,24.153354,151.05,151.04,0.0895996]
[1726820870432,21.07103513,151.16,151.04,0.0895996]
[1726820870630,6.6173,151.12,151.04,0.0895996]
[1726820871604,21.07103513,151.12,151.04,0.0895996]
[1726820871829,24.153354,151.07,151.04,0.0895996]
[1726820872008,0.37647,151.07,151.04,0.0895996]
[1726820873641,6.99597,151.07,151.04,0.0895996]
[1726820873930,0.37647,151.05,151.04,0.0895996]
[1726820874312,6.99677,151.05,151.04,0.0895996]
[1726820874511,30.773654,151.05,151.04,0.0895996]
[1726820874706,50.773654,151.05,151.04,0.0895996]
[1726820875633,44.153354,151.05,151.04,0.0895996]
[1726820876636,50.773654,151.05,151.04,0.0895996]
[1726820877918,71.84468913,151.05,151.04,0.0895996]
[1726820878311,91.69468913,151.05,151.04,9.96e-05]
[1726820878525,0.25098,150.99,150.97,0.5640104]
[1726820878730,24.027864,150.99,150.97,0.5640104]
[1726820879635,0.25098,150.99,150.97,0.5640104]
[1726820879949,24.027864,150.98,150.97,0.5640104]
[1726820880234,23.902374,150.98,150.97,0.5640104]
[1726820880543,24.153354,150.98,150.97,0.5640104]
[1726820880841,44.153354,150.98,150.97,0.5640104]
[1726820881343,50.776654,150.98,150.97,0.5640104]
[1726820881513,44.153354,150.98,150.97,0.5640104]
[1726820881719,20.0,150.95,150.94,0.0731161]
[1726820881916,23.776884,150.96,150.94,0.0731161]
[1726820882231,36.47573513,151.06,150.95,21.07103513]
[1726820882616,36.47573513,151.06,150.94,0.0731161]
[1726820882617,6.6221,151.01,150.94,0.0731161]
[1726820883227,36.47573513,151.06,150.95,21.07103513]
[1726820883440,15.4047,151.06,150.97,21.07103513]
[1726820883918,6.6194,151.07,150.99,21.07103513]
[1726820884241,15.1546,151.1,150.99,36.15983513]
[1726820884440,6.6199,151.06,150.99,36.15983513]
[1726820884819,20.0,151.09,150.99,36.15983513]
[1726820885018,20.0,151.05,150.99,36.15983513]
[1726820886035,24.153354,151.04,150.99,36.15983513]
[1726820887644,24.153354,151.04,150.98,6.1799]
[1726820888021,24.153354,151.01,150.98,6.1799]
[1726820888333,30.775454,151.01,150.95,15.7506]
[1726820888725,6.6225,151.0,150.95,15.7506]
[1726820888923,23.776884,150.99,150.95,15.7506]
[1726820889315,0.12549,150.98,150.95,15.7506]
[1726820889844,23.776884,150.97,150.94,0.0731161]
[1726820890023,0.37647,150.96,150.94,0.0731161]
[1726820890225,30.778054,150.95,150.94,0.0731161]
[1726820890433,24.153354,150.95,150.94,0.0731161]
[1726820891348,0.12549,150.95,150.94,0.0731161]
[1726820891646,6.6221,151.01,150.94,0.0731161]
[1726820891851,0.12549,150.99,150.94,0.0731161]
[1726820892228,6.6233,150.98,150.94,0.0731161]
[1726820893046,0.12549,150.96,150.94,0.0731161]
[1726820894250,6.74989,150.96,150.94,0.0731161]
[1726820894440,24.153354,150.95,150.94,0.0731161]
[1726820894653,30.778054,150.95,150.94,0.0731161]
[1726820894946,24.153354,150.95,150.94,0.0731161]
[1726820896437,23.902374,150.95,150.94,0.0731161]
[1726820897233,6.6212,151.03,150.94,0.0731161]
[1726820897437,6.6207,151.04,150.96,21.07103513]